fUST/lending_fUST_20250704
["ID","MTS","AMOUNT","RATE_DAILY","PERIOD"]
[369512680,1751604658709,-500.0,0.00021643,10]
[369512681,1751604658719,-500.0,0.00021643,10]
[369512682,1751604658729,-460.0,0.00021643,2]
[369512683,1751604658739,-492.18,0.00021643,2]
[369512684,1751604658748,-1277.65,0.00021643,2]
[369512685,1751604658759,-460.0,0.00021643,2]
[369512686,1751604658769,-460.0,0.00021643,2]
[369512687,1751604658779,-867.18,0.00021643,2]
[369512688,1751604658788,-460.0,0.00021643,2]
[369512689,1751604658798,-1293.38,0.00021643,2]
[369512690,1751604658807,-2202.29,0.00021643,2]
[369512691,1751604658817,-3591.81,0.00021643,2]
[369512692,1751604658826,-505.67,0.00021643,2]
[369512693,1751604658835,-555.73131262,0.00021643,2]
[369512694,1751604658845,-1371.69,0.00021643,2]
[369512695,1751604658854,-1552.07,0.00021643,2]
[369512696,1751604658864,-1149.92,0.00021643,2]
[369512697,1751604658873,-495.42,0.00021643,2]
[369512698,1751604658882,-1928.25,0.00021643,2]
[369512699,1751604658892,-460.0,0.00021643,2]
[369512700,1751604658901,-580.29,0.00021643,2]
[369512701,1751604658911,-2392.35,0.00021643,2]
[369512702,1751604658920,-746.15,0.00021643,2]
[369512703,1751604658930,-491.58,0.00021643,2]
[369512704,1751604658939,-485.74,0.00021643,2]
[369512705,1751604658948,-664.6,0.00021643,2]
[369512706,1751604658959,-1786.15,0.00021643,2]
[369512707,1751604658969,-644.83301965,0.00021643,2]
[369512708,1751604658982,-876.21698035,0.00021643,2]
[369512709,1751604658992,-1611.28,0.00021643,2]
[369512710,1751604659002,-1229.42,0.00021643,2]
[369512711,1751604659012,-343.43945048,0.00021643,2]
[369512712,1751604659024,-226.85515307,0.00021643,2]
[369512713,1751604659034,-528.43,0.00021643,2]
[369512714,1751604659044,-1020.96,0.00021643,2]
[369512715,1751604659053,-502.83,0.00021643,2]
[369512716,1751604659063,-1496.74,0.00021643,2]
[369512717,1751604659073,-101.83033785,0.00021643,2]
[369512718,1751604659086,-747.71966215,0.00021643,2]
[369512719,1751604659095,-1027.21033785,0.00021643,2]
[369512720,1751604659107,-347.04966215,0.00021643,2]
[369512721,1751604659117,-152.95033785,0.00021643,2]
[369512722,1751604659129,-1477.27684283,0.00021643,2]
[369512723,1751604659191,-460.0,0.00016438,2]
[369512724,1751604659200,-463.17499717,0.00016438,2]
[369512725,1751604659210,-460.0,0.00016712,2]
[369512726,1751604659221,-151.0,0.00018555,2]
[369512727,1751604659231,-151.0,0.00018904,2]
[369512728,1751604659241,-151.0,0.00019204,2]
[369512729,1751604659251,-151.0,0.00019329,2]
[369512730,1751604659260,-113.37891846,0.00019452,2]
[369512731,1751604659314,-168.69300454,0.00019452,2]
[369512732,1751604659324,-156.27724694,0.00021643,2]
[369512733,1751604659336,-1994.85557238,0.00021643,2]
[369512734,1751604659346,-761.74,0.00021643,2]
[369512735,1751604659355,-654.79,0.00021643,2]
[369512736,1751604659366,-1079.27,0.00021643,2]
[369512737,1751604659376,-460.0,0.00021643,2]
[369512738,1751604659385,-740.76758993,0.00021644,2]
[369512739,1751604659397,-4259.23241007,0.00021644,2]
[369512740,1751604659407,-2734.51686796,0.00021644,2]
[369512741,1751604659419,-1927.20946137,0.00021644,2]
[369512742,1751604659979,-460.0,0.00016438,2]
[369512743,1751604659990,-460.0,0.00016438,2]
[369512744,1751604660000,-517.29,0.00016438,2]
[369512745,1751604660011,-460.0,0.00016712,2]
[369512746,1751604660022,-517.29,0.00016712,2]
[369512747,1751604660031,-460.0,0.00016986,2]
[369512748,1751604660042,-517.29,0.00016986,2]
[369512749,1751604660052,-460.0,0.0001726,2]
[369512750,1751604660062,-517.29,0.0001726,2]
[369512751,1751604660071,-460.0,0.00017534,2]
[369512752,1751604660081,-460.0,0.00017808,2]
[369512753,1751604660091,-460.0,0.00018082,2]
[369512754,1751604660102,-366.5311405,0.00018329,2]
[369512755,1751604660113,-460.0,0.00018356,2]
[369512756,1751604660124,-545.18671845,0.0001863,2]
[369512757,1751604660134,-237.54585093,0.00021644,2]
[369512758,1751604660324,-460.0,0.00016438,2]
[369512759,1751604660334,-464.83233045,0.00016438,2]
[369512760,1751604660344,-460.0,0.00016438,2]
[369512761,1751604660354,-460.0,0.00016712,2]
[369512762,1751604660363,-460.0,0.00016986,2]
[369512763,1751604660372,-460.0,0.0001726,2]
[369512764,1751604660382,-517.29,0.00017534,2]
[369512765,1751604660391,-372.5,0.00017534,2]
[369512766,1751604660401,-517.29,0.00017808,2]
[369512767,1751604660410,-499.19504448,0.00018082,2]
[369512768,1751604660422,-18.09495552,0.00018082,2]
[369512769,1751604660431,-239.90807988,0.00018356,2]
[369512771,1751604775848,-1200.0,0.00016425,2]
[369512772,1751604775870,-300.0,0.00016425,2]
[369512773,1751604775891,-500.0,0.00016425,2]
[369512774,1751604775913,-500.0,0.00016425,2]
[369512775,1751604775935,-500.0,0.00016425,2]
[369512776,1751604775958,-286.0,0.00016425,2]
[369512777,1751605048824,164.615049,0.00013699,2]
[369512780,1751605486519,-7967.0,0.00015403,2]
[369512810,1751605831881,-1200.0,0.00015402,2]
[369512812,1751605831891,-197.63424751,0.00015402,2]
[369512817,1751605831937,-102.36575249,0.00015402,2]
[369512831,1751605832100,-197.63424751,0.00015402,2]
[369512832,1751605832112,-102.36575249,0.00015402,2]
[369512833,1751605832122,-242.0,0.00015402,2]
[369512834,1751605832132,-16933.0,0.00015403,2]
[369512835,1751605832141,-645.7586102,0.0001542,2]
[369512836,1751605832151,-221.189323,0.00015424,2]
[369512837,1751605832160,-1475.9435786,0.00015697,2]
[369512838,1751605832169,-331.43745616,0.00015996,2]
[369512839,1751605832179,-500.0,0.00016335,2]
[369512840,1751605832188,-417.32412995,0.00016335,2]
[369512841,1751605832197,-500.0,0.00016335,2]
[369512842,1751605832207,-500.0,0.00016335,2]
[369512843,1751605832216,-500.0,0.00016335,2]
[369512844,1751605832225,-500.0,0.00016335,2]
[369512845,1751605832235,-236.46037166,0.00016335,2]
[369512846,1751605832245,-50000.0,0.00016336,2]
[369512847,1751605832254,-500.0,0.00016336,2]
[369512848,1751605832263,-500.0,0.00016336,2]
[369512849,1751605832273,-162.0,0.00016336,2]
[369512850,1751605832282,-500.0,0.00016336,2]
[369512851,1751605832292,-213.99977745,0.00016336,2]
[369512852,1751605832301,-500.0,0.00016336,2]
[369512853,1751605832310,-500.0,0.00016336,2]
[369512854,1751605832319,-500.0,0.00016336,2]
[369512855,1751605832329,-437.01460063,0.00016336,2]
[369512856,1751605832338,-500.0,0.00016336,2]
[369512857,1751605832348,-500.0,0.00016336,2]
[369512858,1751605832358,-500.0,0.00016336,2]
[369512859,1751605832367,-500.0,0.00016336,2]
[369512860,1751605832377,-591.79158417,0.00016336,2]
[369512861,1751605832386,-500.0,0.00016336,2]
[369512862,1751605832395,-500.0,0.00016336,2]
[369512863,1751605832405,-500.0,0.00016336,2]
[369512864,1751605832414,-500.0,0.00016336,2]
[369512865,1751605832424,-500.0,0.00016336,2]
[369512866,1751605832433,-500.0,0.00016336,2]
[369512867,1751605832442,-500.0,0.00016336,2]
[369512869,1751605832452,-500.0,0.00016336,2]
[369512870,1751605832462,-500.0,0.00016336,2]
[369512872,1751605832472,-500.0,0.00016336,2]
[369512874,1751605832481,-500.0,0.00016336,2]
[369512876,1751605832490,-500.0,0.00016336,2]
[369512878,1751605832500,-500.0,0.00016336,2]
[369512880,1751605832509,-500.0,0.00016336,2]
[369512882,1751605832519,-500.0,0.00016336,2]
[369512884,1751605832528,-500.0,0.00016336,2]
[369512886,1751605832537,-239.63075264,0.00016336,2]
[369512889,1751605832547,-500.0,0.00016336,2]
[369512890,1751605832556,-500.0,0.00016336,2]
[369512893,1751605832566,-500.0,0.00016336,2]
[369512895,1751605832576,-500.0,0.00016336,2]
[369512897,1751605832586,-500.0,0.00016336,2]
[369512899,1751605832595,-500.0,0.00016336,2]
[369512901,1751605832604,-500.0,0.00016336,2]
[369512903,1751605832613,-400.0,0.00016336,2]
[369512904,1751605832623,-500.0,0.00016336,2]
[369512906,1751605832632,-500.0,0.00016336,2]
[369512908,1751605832642,-500.0,0.00016336,2]
[369512910,1751605832651,-500.0,0.00016336,2]
[369512912,1751605832661,-500.0,0.00016336,2]
[369512915,1751605832670,-500.0,0.00016336,2]
[369512917,1751605832680,-500.0,0.00016336,2]
[369512919,1751605832689,-500.0,0.00016336,2]
[369512921,1751605832699,-500.0,0.00016336,2]
[369512922,1751605832709,-500.0,0.00016336,2]
[369512924,1751605832719,-500.0,0.00016336,2]
[369512925,1751605832729,-500.0,0.00016336,2]
[369512926,1751605832739,-500.0,0.00016336,2]
[369512927,1751605832754,-349.33327803,0.00016336,2]
[369512928,1751605832764,-500.0,0.00016336,2]
[369512929,1751605832773,-500.0,0.00016336,2]
[369512930,1751605832783,-500.0,0.00016336,2]
[369512932,1751605832793,-500.0,0.00016336,2]
[369512933,1751605832803,-500.0,0.00016336,2]
[369512934,1751605832813,-500.0,0.00016336,2]
[369512935,1751605832823,-500.0,0.00016336,2]
[369512936,1751605832832,-500.0,0.00016336,2]
[369512937,1751605832842,-500.0,0.00016336,2]
[369512938,1751605832851,-500.0,0.00016336,2]
[369512939,1751605832862,-500.0,0.00016336,2]
[369512940,1751605832871,-358.60283716,0.00016336,2]
[369512941,1751605832880,-500.0,0.00016336,2]
[369512942,1751605832891,-500.0,0.00016336,2]
[369512943,1751605832900,-500.0,0.00016336,2]
[369512944,1751605832913,-500.0,0.00016336,2]
[369512945,1751605832923,-500.0,0.00016336,2]
[369512946,1751605832932,-500.0,0.00016336,2]
[369512947,1751605832942,-500.0,0.00016336,2]
[369512948,1751605832951,-500.0,0.00016336,2]
[369512949,1751605832961,-500.0,0.00016336,2]
[369512950,1751605832970,-500.0,0.00016336,2]
[369512951,1751605832980,-500.0,0.00016336,2]
[369512952,1751605832989,-500.0,0.00016336,2]
[369512953,1751605833000,-500.0,0.00016336,2]
[369512954,1751605833011,-500.0,0.00016336,2]
[369512955,1751605833020,-500.0,0.00016336,2]
[369512956,1751605833030,-165.88253664,0.00016336,2]
[369512957,1751605833040,-500.0,0.00016336,2]
[369512958,1751605833050,-500.0,0.00016336,2]
[369512959,1751605833060,-500.0,0.00016336,2]
[369512960,1751605833071,-500.0,0.00016336,2]
[369512961,1751605833082,-500.0,0.00016336,2]
[369512962,1751605833091,-500.0,0.00016336,2]
[369512963,1751605833101,-500.0,0.00016336,2]
[369512964,1751605833111,-500.0,0.00016336,2]
[369512965,1751605833120,-500.0,0.00016336,2]
[369512966,1751605833130,-500.0,0.00016336,2]
[369512967,1751605833140,-500.0,0.00016336,2]
[369512968,1751605833150,-500.0,0.00016336,2]
[369512969,1751605833160,-500.0,0.00016336,2]
[369512970,1751605833170,-500.0,0.00016336,2]
[369512971,1751605833179,-500.0,0.00016336,2]
[369512972,1751605833189,-500.0,0.00016336,2]
[369512973,1751605833199,-500.0,0.00016336,2]
[369512974,1751605833208,-500.0,0.00016336,2]
[369512975,1751605833218,-500.0,0.00016336,2]
[369512976,1751605833227,-500.0,0.00016336,2]
[369512977,1751605833237,-500.0,0.00016336,2]
[369512978,1751605833246,-500.0,0.00016336,2]
[369512979,1751605833256,-500.0,0.00016336,2]
[369512980,1751605833265,-180.91057992,0.00016336,2]
[369512981,1751605833275,-500.0,0.00016336,2]
[369512982,1751605833285,-500.0,0.00016336,2]
[369512983,1751605833295,-500.0,0.00016336,2]
[369512984,1751605833304,-500.0,0.00016336,2]
[369512985,1751605833314,-500.0,0.00016336,2]
[369512986,1751605833324,-500.0,0.00016336,2]
[369512987,1751605833334,-500.0,0.00016336,2]
[369512988,1751605833343,-199.99999999,0.00016336,2]
[369512989,1751605833353,-500.0,0.00016336,2]
[369512990,1751605833364,-500.0,0.00016336,2]
[369512991,1751605833373,-500.0,0.00016336,2]
[369512992,1751605833383,-500.0,0.00016336,2]
[369512993,1751605833393,-500.0,0.00016336,2]
[369512994,1751605833403,-500.0,0.00016336,2]
[369512995,1751605833412,-500.0,0.00016336,2]
[369512996,1751605833422,-500.0,0.00016336,2]
[369512997,1751605833433,-500.0,0.00016336,2]
[369512998,1751605833442,-500.0,0.00016336,2]
[369512999,1751605833451,-477.46682831,0.00016336,2]
[369513000,1751605833461,-500.0,0.00016336,2]
[369513001,1751605833471,-500.0,0.00016336,2]
[369513002,1751605833480,-500.0,0.00016336,2]
[369513003,1751605833490,-500.0,0.00016336,2]
[369513004,1751605833500,-500.0,0.00016336,2]
[369513005,1751605833510,-500.0,0.00016336,2]
[369513006,1751605833520,-500.0,0.00016336,2]
[369513007,1751605833530,-500.0,0.00016336,2]
[369513008,1751605833540,-500.0,0.00016336,2]
[369513009,1751605833550,-500.0,0.00016336,2]
[369513010,1751605833560,-500.0,0.00016336,2]
[369513011,1751605833570,-500.0,0.00016336,2]
[369513012,1751605833580,-500.0,0.00016336,2]
[369513013,1751605833590,-500.0,0.00016336,2]
[369513014,1751605833599,-500.0,0.00016336,2]
[369513015,1751605833609,-500.0,0.00016336,2]
[369513016,1751605833619,-500.0,0.00016336,2]
[369513017,1751605833630,-500.0,0.00016336,2]
[369513018,1751605833640,-500.0,0.00016336,2]
[369513019,1751605833650,-500.0,0.00016336,2]
[369513020,1751605833660,-235.26926053,0.00016337,2]
[369513021,1751605833669,-1080.90741834,0.00016338,2]
[369513022,1751605833679,-160.0,0.00016418,2]
[369513023,1751605833688,-160.0,0.00016419,2]
[369513024,1751605833698,-300.451,0.00016424,2]
[369513025,1751605833708,-179.29,0.00016428,3]
[369513026,1751605833717,-151.0,0.00016428,2]
[369513027,1751605833727,-151.0,0.00016428,2]
[369513028,1751605833738,-151.0,0.00016428,2]
[369513029,1751605833748,-151.0,0.00016428,2]
[369513030,1751605833758,-151.0,0.00016428,2]
[369513031,1751605833767,-151.0,0.00016428,2]
[369513032,1751605833776,-151.0,0.00016428,2]
[369513033,1751605833787,-151.0,0.00016428,2]
[369513034,1751605833796,-151.0,0.00016428,2]
[369513035,1751605833806,-151.0,0.00016428,2]
[369513036,1751605833816,-151.0,0.00016428,2]
[369513037,1751605833826,-460.0,0.00016438,2]
[369513038,1751605833835,-460.0,0.00016438,2]
[369513039,1751605833845,-460.0,0.00016438,2]
[369513040,1751605833855,-460.0,0.00016438,2]
[369513041,1751605833865,-461.63551412,0.00016438,2]
[369513042,1751605833874,-460.60814728,0.00016438,2]
[369513043,1751605833885,-460.0,0.00016438,2]
[369513044,1751605833894,-462.0,0.00016438,2]
[369513045,1751605833904,-460.0,0.00016438,2]
[369513046,1751605833914,-460.0,0.00016438,2]
[369513047,1751605833923,-460.0,0.00016438,2]
[369513048,1751605833933,-460.0,0.00016438,2]
[369513049,1751605833943,-460.0,0.00016438,2]
[369513050,1751605833953,-460.0,0.00016438,2]
[369513051,1751605833962,-460.0,0.00016438,2]
[369513052,1751605833972,-460.0,0.00016438,2]
[369513053,1751605833981,-460.39614143,0.00016438,2]
[369513054,1751605833991,-460.0,0.00016438,2]
[369513055,1751605834004,-461.24116717,0.00016438,2]
[369513056,1751605834014,-460.0,0.00016438,2]
[369513057,1751605834024,-460.0,0.00016438,2]
[369513058,1751605834034,-460.0,0.00016438,2]
[369513059,1751605834043,-460.0,0.00016438,2]
[369513060,1751605834053,-460.0,0.00016438,2]
[369513061,1751605834063,-460.0,0.00016438,2]
[369513062,1751605834073,-460.0,0.00016438,2]
[369513063,1751605834084,-461.23471482,0.00016438,2]
[369513064,1751605834095,-460.0,0.00016438,2]
[369513065,1751605834105,-326.66237992,0.00016438,2]
[369513066,1751605834115,-460.0,0.00016438,2]
[369513067,1751605834125,-460.0,0.00016438,2]
[369513068,1751605834135,-460.0,0.00016438,2]
[369513069,1751605834145,-460.0,0.00016438,2]
[369513070,1751605834155,-501.90392352,0.00016438,2]
[369513071,1751605834165,-460.75334547,0.00016438,2]
[369513072,1751605834174,-460.0,0.00016438,2]
[369513073,1751605834184,-460.0,0.00016438,2]
[369513074,1751605834194,-460.0,0.00016438,2]
[369513075,1751605834205,-467.34587506,0.00016438,2]
[369513076,1751605834214,-461.70383307,0.00016438,2]
[369513077,1751605834224,-460.0,0.00016438,2]
[369513078,1751605834234,-460.0,0.00016438,2]
[369513079,1751605834244,-460.0,0.00016438,2]
[369513080,1751605834255,-460.0,0.00016438,2]
[369513081,1751605834264,-431.09002251,0.00016438,2]
[369513082,1751605834274,-460.0,0.00016438,2]
[369513083,1751605834284,-461.44705831,0.00016438,2]
[369513084,1751605834294,-460.0,0.00016438,2]
[369513085,1751605834304,-460.0,0.00016438,2]
[369513086,1751605834314,-460.0,0.00016438,2]
[369513087,1751605834324,-460.31831876,0.00016438,2]
[369513088,1751605834334,-460.0,0.00016438,2]
[369513089,1751605834344,-461.88848629,0.00016438,2]
[369513090,1751605834353,-460.32014227,0.00016438,2]
[369513091,1751605834364,-460.0,0.00016438,2]
[369513092,1751605834373,-460.0,0.00016438,2]
[369513093,1751605834383,-460.0,0.00016438,2]
[369513094,1751605834393,-460.0,0.00016438,2]
[369513095,1751605834403,-460.95191974,0.00016438,2]
[369513096,1751605834413,-462.63047816,0.00016438,2]
[369513097,1751605834423,-460.0,0.00016438,2]
[369513098,1751605834432,-398.09138596,0.00016438,2]
[369513099,1751605834442,-460.0,0.00016438,2]
[369513100,1751605834451,-460.0,0.00016438,2]
[369513101,1751605834461,-461.23085601,0.00016438,2]
[369513102,1751605834471,-460.90758494,0.00016438,2]
[369513103,1751605834481,-460.0,0.00016438,2]
[369513104,1751605834491,-222.05252152,0.00016438,2]
[369513105,1751605834616,-461.43094857,0.00016438,2]
[369513106,1751605834626,-460.0,0.00016438,2]
[369513107,1751605834636,-460.0,0.00016438,2]
[369513108,1751605834646,-460.75450316,0.00016438,2]
[369513109,1751605834655,-352.21450804,0.00016438,2]
[369513110,1751605834665,-460.0,0.00016438,2]
[369513111,1751605834674,-460.0,0.00016438,2]
[369513112,1751605834684,-460.93104419,0.00016438,2]
[369513113,1751605834694,-460.0,0.00016438,2]
[369513114,1751605834704,-460.71817422,0.00016438,2]
[369513115,1751605834714,-462.09673237,0.00016438,2]
[369513116,1751605834724,-460.0,0.00016438,2]
[369513117,1751605834733,-460.0,0.00016438,2]
[369513118,1751605834743,-460.0,0.00016438,2]
[369513119,1751605834755,-460.0,0.00016438,2]
[369513120,1751605834764,-487.16,0.00016438,2]
[369513121,1751605834774,-300.0,0.00016438,2]
[369513122,1751605834784,-460.0,0.00016438,2]
[369513123,1751605834794,-460.0,0.00016438,2]
[369513124,1751605834803,-460.0,0.00016438,2]
[369513125,1751605834813,-460.0,0.00016438,2]
[369513126,1751605834822,-461.17158697,0.00016438,2]
[369513127,1751605834832,-348.62593193,0.00016438,2]
[369513128,1751605834842,-460.0,0.00016438,2]
[369513129,1751605834851,-461.24388333,0.00016438,2]
[369513130,1751605834860,-460.0,0.00016438,2]
[369513131,1751605834870,-177.22752218,0.00016438,2]
[369513132,1751605834880,-460.0,0.00016438,2]
[369513133,1751605834889,-460.0,0.00016438,2]
[369513134,1751605834899,-500.0,0.00016438,2]
[369513135,1751605834909,-500.0,0.00016438,2]
[369513136,1751605834918,-500.0,0.00016438,2]
[369513137,1751605834927,-500.0,0.00016438,2]
[369513138,1751605834937,-500.0,0.00016438,2]
[369513139,1751605834947,-460.0,0.00016438,2]
[369513140,1751605834956,-460.0,0.00016438,2]
[369513141,1751605834966,-461.55027104,0.00016438,2]
[369513142,1751605834976,-460.0,0.00016438,2]
[369513143,1751605834987,-460.0,0.00016438,2]
[369513144,1751605834996,-427.69039294,0.00016438,2]
[369513145,1751605835010,-460.0,0.00016438,2]
[369513146,1751605835019,-460.0,0.00016438,2]
[369513147,1751605835029,-460.0,0.00016438,2]
[369513148,1751605835038,-460.0,0.00016438,2]
[369513149,1751605835047,-460.0,0.00016438,2]
[369513150,1751605835056,-460.0,0.00016438,2]
[369513151,1751605835066,-460.0,0.00016438,2]
[369513152,1751605835075,-479.13,0.00016438,2]
[369513153,1751605835084,-460.0,0.00016438,2]
[369513154,1751605835094,-460.0,0.00016438,2]
[369513155,1751605835104,-460.0,0.00016438,2]
[369513156,1751605835113,-460.0,0.00016438,2]
[369513157,1751605835123,-460.0,0.00016438,2]
[369513158,1751605835131,-461.34608854,0.00016438,2]
[369513159,1751605835141,-541.50044147,0.00016438,2]
[369513160,1751605835151,-460.0,0.00016438,2]
[369513161,1751605835160,-460.0,0.00016438,2]
[369513162,1751605835170,-460.0,0.00016438,2]
[369513163,1751605835180,-460.58776324,0.00016438,2]
[369513164,1751605835189,-460.0,0.00016438,2]
[369513165,1751605835199,-460.0,0.00016438,2]
[369513166,1751605835208,-460.0,0.00016438,2]
[369513167,1751605835219,-460.0,0.00016438,2]
[369513168,1751605835228,-460.0,0.00016438,2]
[369513169,1751605835237,-460.0,0.00016438,2]
[369513170,1751605835247,-460.0,0.00016438,2]
[369513171,1751605835257,-433.15952347,0.00016438,2]
[369513172,1751605835266,-460.0,0.00016438,2]
[369513173,1751605835275,-460.0,0.00016438,2]
[369513174,1751605835284,-460.0,0.00016438,2]
[369513175,1751605835294,-460.0,0.00016438,2]
[369513176,1751605835304,-460.0,0.00016438,2]
[369513177,1751605835313,-460.0,0.00016438,2]
[369513178,1751605835323,-460.0,0.00016438,2]
[369513179,1751605835332,-460.0,0.00016438,2]
[369513180,1751605835341,-460.0,0.00016438,2]
[369513181,1751605835351,-431.71522621,0.00016438,2]
[369513182,1751605835360,-344.50438321,0.00016438,2]
[369513183,1751605835369,-460.0,0.00016438,2]
[369513184,1751605835379,-460.0,0.00016438,2]
[369513185,1751605835388,-460.0,0.00016438,2]
[369513186,1751605835397,-200.0,0.00016438,10]
[369513187,1751605835407,-460.0,0.00016438,2]
[369513188,1751605835416,-200.0,0.00016438,10]
[369513189,1751605835425,-200.0,0.00016438,10]
[369513190,1751605835434,-460.0,0.00016438,2]
[369513191,1751605835443,-200.0,0.00016438,10]
[369513192,1751605835453,-200.0,0.00016438,10]
[369513193,1751605835462,-200.0,0.00016438,10]
[369513194,1751605835472,-200.0,0.00016438,10]
[369513195,1751605835483,-200.0,0.00016438,10]
[369513196,1751605835493,-200.0,0.00016438,10]
[369513197,1751605835503,-200.0,0.00016438,10]
[369513198,1751605835513,-460.0,0.00016438,2]
[369513199,1751605835522,-200.0,0.00016438,10]
[369513200,1751605835532,-200.0,0.00016438,10]
[369513201,1751605835542,-200.0,0.00016438,10]
[369513202,1751605835551,-200.0,0.00016438,10]
[369513203,1751605835561,-460.0,0.00016438,2]
[369513204,1751605835570,-200.0,0.00016438,10]
[369513205,1751605835580,-460.0,0.00016438,2]
[369513206,1751605835589,-200.0,0.00016438,10]
[369513207,1751605835599,-200.0,0.00016438,10]
[369513208,1751605835609,-461.31807521,0.00016438,2]
[369513209,1751605835619,-200.0,0.00016438,10]
[369513210,1751605835629,-200.0,0.00016438,10]
[369513211,1751605835639,-200.0,0.00016438,10]
[369513212,1751605835649,-460.0,0.00016438,2]
[369513213,1751605835665,-200.0,0.00016438,10]
[369513214,1751605835675,-200.0,0.00016438,10]
[369513215,1751605835684,-200.0,0.00016438,10]
[369513216,1751605835694,-200.0,0.00016438,10]
[369513217,1751605835703,-200.0,0.00016438,10]
[369513218,1751605835713,-607.59,0.00016438,2]
[369513219,1751605835722,-200.0,0.00016438,10]
[369513220,1751605835732,-200.0,0.00016438,10]
[369513221,1751605835741,-460.0,0.00016438,2]
[369513222,1751605835751,-200.0,0.00016438,10]
[369513223,1751605835760,-200.0,0.00016438,10]
[369513224,1751605835769,-200.0,0.00016438,10]
[369513225,1751605835778,-200.0,0.00016438,10]
[369513226,1751605835788,-200.0,0.00016438,10]
[369513227,1751605835797,-200.0,0.00016438,10]
[369513228,1751605835806,-200.0,0.00016438,10]
[369513229,1751605835816,-200.0,0.00016438,10]
[369513230,1751605835826,-200.0,0.00016438,10]
[369513231,1751605835836,-200.0,0.00016438,10]
[369513232,1751605835845,-200.0,0.00016438,10]
[369513233,1751605835856,-200.0,0.00016438,10]
[369513234,1751605835866,-460.0,0.00016438,2]
[369513235,1751605835875,-200.0,0.00016438,10]
[369513236,1751605835884,-460.0,0.00016438,2]
[369513237,1751605835894,-200.0,0.00016438,10]
[369513238,1751605835903,-200.0,0.00016438,10]
[369513239,1751605835912,-200.0,0.00016438,10]
[369513240,1751605835922,-200.0,0.00016438,10]
[369513241,1751605835932,-200.0,0.00016438,10]
[369513242,1751605835943,-200.0,0.00016438,10]
[369513243,1751605835952,-460.0,0.00016438,2]
[369513244,1751605835961,-460.0,0.00016438,2]
[369513245,1751605835971,-460.0,0.00016438,2]
[369513246,1751605835982,-200.0,0.00016438,10]
[369513247,1751605835992,-200.0,0.00016438,10]
[369513248,1751605836007,-200.0,0.00016438,10]
[369513249,1751605836017,-460.0,0.00016438,2]
[369513250,1751605836027,-200.0,0.00016438,10]
[369513251,1751605836036,-200.0,0.00016438,10]
[369513252,1751605836046,-200.0,0.00016438,10]
[369513253,1751605836055,-200.0,0.00016438,10]
[369513254,1751605836064,-200.0,0.00016438,10]
[369513255,1751605836074,-200.0,0.00016438,10]
[369513256,1751605836085,-200.0,0.00016438,10]
[369513257,1751605836095,-200.0,0.00016438,10]
[369513258,1751605836105,-200.0,0.00016438,10]